fUSD/lending_fUSD_20250513
["ID","MTS","AMOUNT","RATE_DAILY","PERIOD"]
[360896546,1747127451956,-400.0,0.00011987,2]
[360896547,1747127451965,-400.0,0.00011987,2]
[360896548,1747127451974,-400.0,0.00011987,2]
[360896549,1747127451983,-406.98752701,0.00011987,2]
[360896550,1747127451992,-420.82411193,0.00011987,2]
[360896551,1747127452001,-500.0,0.00011987,2]
[360896552,1747127452010,-400.0,0.00011987,2]
[360896553,1747127452019,-407.39241008,0.00011987,2]
[360896554,1747127452028,-413.73960165,0.00011987,2]
[360896555,1747127452037,-403.37415484,0.00011987,2]
[360896556,1747127452051,-721.24,0.00011987,2]
[360896557,1747127452060,-400.0,0.00011987,2]
[360896558,1747127452069,-400.0,0.00011987,2]
[360896559,1747127452079,-400.0,0.00011987,2]
[360896560,1747127452088,-400.0,0.00011987,2]
[360896561,1747127452097,-400.0,0.00011987,2]
[360896562,1747127452108,-542.58,0.00011987,2]
[360896563,1747127452118,-406.78286401,0.00011987,2]
[360896564,1747127452127,-400.0,0.00011987,2]
[360896565,1747127452137,-400.92170018,0.00011987,2]
[360896566,1747127452147,-402.64891522,0.00011987,2]
[360896567,1747127452157,-402.39442202,0.00011987,2]
[360896568,1747127452166,-404.2637166,0.00011987,2]
[360896569,1747127452177,-787.67,0.00011987,2]
[360896570,1747127452187,-400.0,0.00011987,2]
[360896571,1747127452196,-404.48453347,0.00011987,2]
[360896572,1747127452205,-400.0,0.00011987,2]
[360896573,1747127452216,-400.0,0.00011987,2]
[360896574,1747127452226,-391.19988199,0.00011987,2]
[360896575,1747127452235,-1000.0,0.00011987,2]
[360896576,1747127452245,-400.0,0.00011987,2]
[360896577,1747127452255,-400.0,0.00011987,2]
[360896578,1747127452264,-400.0,0.00011987,2]
[360896579,1747127452274,-400.0,0.00011987,2]
[360896580,1747127452284,-400.0,0.00011987,2]
[360896581,1747127452293,-188.515598,0.00011987,2]
[360896582,1747127452302,-400.0,0.00011987,2]
[360896583,1747127452312,-400.0,0.00011987,2]
[360896584,1747127452322,-400.0,0.00011987,2]
[360896585,1747127452331,-405.81129263,0.00011987,2]
[360896586,1747127452341,-498.36419894,0.00011987,2]
[360896587,1747127452350,-405.65,0.00011987,2]
[360896588,1747127452359,-400.0,0.00011987,2]
[360896589,1747127452369,-946.96,0.00011987,2]
[360896590,1747127452378,-400.0,0.00011987,2]
[360896591,1747127452387,-402.82769153,0.00011987,2]
[360896592,1747127452397,-498.69677263,0.00011987,2]
[360896593,1747127452406,-400.0,0.00011987,2]
[360896594,1747127452416,-713.67,0.00011987,2]
[360896595,1747127452426,-400.0,0.00011987,2]
[360896596,1747127452441,-400.0,0.00011987,2]
[360896597,1747127452450,-400.0,0.00011987,2]
[360896598,1747127452460,-400.0,0.00011987,2]
[360896599,1747127452469,-400.0,0.00011987,2]
[360896600,1747127452479,-519.21,0.00011987,2]
[360896601,1747127452488,-400.0,0.00011987,2]
[360896602,1747127452497,-151.0,0.00011987,2]
[360896603,1747127452506,-151.0,0.00011987,2]
[360896604,1747127452515,-1074.79,0.00011987,2]
[360896605,1747127452524,-400.0,0.00011987,2]
[360896606,1747127452533,-400.0,0.00011987,2]
[360896607,1747127452543,-400.0,0.00011987,2]
[360896608,1747127452552,-151.0,0.00011987,2]
[360896609,1747127452562,-151.0,0.00011987,2]
[360896610,1747127452571,-404.16119972,0.00011987,2]
[360896611,1747127452580,-406.9022253,0.00011987,2]
[360896612,1747127452589,-413.88821092,0.00011987,2]
[360896613,1747127452598,-774.93,0.00011987,2]
[360896614,1747127452608,-400.0,0.00011987,2]
[360896615,1747127452617,-400.0,0.00011987,2]
[360896616,1747127452626,-400.0,0.00011987,2]
[360896617,1747127452635,-151.0,0.00011987,2]
[360896618,1747127452644,-151.0,0.00011987,2]
[360896619,1747127452653,-530.13,0.00011987,2]
[360896620,1747127452662,-416.00034246,0.00011987,2]
[360896621,1747127452671,-400.0,0.00011987,2]
[360896622,1747127452679,-400.0,0.00011987,2]
[360896623,1747127452690,-409.27419191,0.00011987,2]
[360896624,1747127452699,-400.0,0.00011987,2]
[360896625,1747127452708,-400.0,0.00011987,2]
[360896626,1747127452718,-446.7173568,0.00011987,2]
[360896627,1747127452727,-400.0,0.00011987,2]
[360896628,1747127452736,-794.01,0.00011987,2]
[360896629,1747127452746,-151.0,0.00011987,2]
[360896630,1747127452755,-400.0,0.00011987,2]
[360896631,1747127452764,-151.0,0.00011987,2]
[360896632,1747127452773,-151.622752,0.00011987,2]
[360896633,1747127452783,-400.0,0.00011987,2]
[360896634,1747127452792,-400.0,0.00011987,2]
[360896635,1747127452802,-151.0,0.00011987,2]
[360896636,1747127452811,-151.0,0.00011987,2]
[360896637,1747127452821,-400.0,0.00011987,2]
[360896638,1747127452831,-400.0,0.00011987,2]
[360896639,1747127452841,-404.63260811,0.00011987,2]
[360896640,1747127452851,-400.0,0.00011987,2]
[360896641,1747127452861,-400.0,0.00011987,2]
[360896642,1747127452870,-400.0,0.00011987,2]
[360896643,1747127452880,-400.0,0.00011987,2]
[360896644,1747127452889,-400.0,0.00011987,2]
[360896645,1747127452898,-400.0,0.00011987,2]
[360896646,1747127452907,-403.58184415,0.00011987,2]
[360896647,1747127452916,-1557.42,0.00011987,2]
[360896648,1747127452926,-400.0,0.00011987,2]
[360896649,1747127452937,-400.0,0.00011987,2]
[360896650,1747127452947,-400.0,0.00011987,2]
[360896651,1747127452956,-663.15,0.00011987,2]
[360896652,1747127452965,-401.46801106,0.00011987,2]
[360896653,1747127452975,-536.9,0.00011987,2]
[360896654,1747127452984,-400.0,0.00011987,2]
[360896655,1747127452994,-734.96,0.00011987,2]
[360896656,1747127453003,-401.19535255,0.00011987,2]
[360896657,1747127453012,-400.0,0.00011987,2]
[360896658,1747127453022,-402.13197429,0.00011987,2]
[360896659,1747127453032,-400.0,0.00011987,2]
[360896660,1747127453042,-400.0,0.00011987,2]
[360896661,1747127453054,-628.3,0.00011987,2]
[360896662,1747127453064,-403.44769976,0.00011987,2]
[360896663,1747127453073,-405.08754272,0.00011987,2]
[360896664,1747127453083,-400.0,0.00011987,2]
[360896665,1747127453094,-151.0,0.00011987,2]
[360896666,1747127453104,-151.0,0.00011987,2]
[360896667,1747127453113,-400.97192354,0.00011987,2]
[360896668,1747127453123,-1443.66,0.00011987,2]
[360896669,1747127453133,-400.0,0.00011987,2]
[360896670,1747127453142,-548.97,0.00011987,2]
[360896671,1747127453152,-400.0,0.00011987,2]
[360896672,1747127453162,-195.393995,0.00011987,2]
[360896673,1747127453171,-400.0,0.00011987,2]
[360896674,1747127453181,-400.5046294,0.00011987,2]
[360896675,1747127453191,-400.0,0.00011987,2]
[360896676,1747127453200,-400.0,0.00011987,2]
[360896677,1747127453209,-400.0,0.00011987,2]
[360896678,1747127453219,-404.87706256,0.00011987,2]
[360896679,1747127453229,-403.05833943,0.00011987,2]
[360896680,1747127453238,-944.71,0.00011987,2]
[360896681,1747127453247,-582.84,0.00011987,2]
[360896682,1747127453257,-462.04249004,0.00011987,2]
[360896683,1747127453266,-400.0,0.00011987,2]
[360896684,1747127453275,-610.68,0.00011987,2]
[360896685,1747127453284,-400.81199184,0.00011987,2]
[360896686,1747127453294,-400.0,0.00011987,2]
[360896687,1747127453303,-400.0,0.00011987,2]
[360896688,1747127453313,-403.29338559,0.00011987,2]
[360896689,1747127453322,-400.0,0.00011987,2]
[360896690,1747127453332,-300.0,0.00011987,2]
[360896691,1747127453341,-401.63117073,0.00011988,2]
[360896692,1747127453351,-400.0,0.00011988,2]
[360896693,1747127453360,-400.89521287,0.00011988,2]
[360896694,1747127453370,-400.0,0.00011988,2]
[360896695,1747127453380,-250.0,0.00011988,2]
[360896696,1747127453390,-400.0,0.00011988,2]
[360896697,1747127453399,-401.24139334,0.00011988,2]
[360896698,1747127453409,-400.0,0.00011988,2]
[360896699,1747127453419,-400.0,0.00011988,2]
[360896700,1747127453429,-401.80007252,0.00011988,2]
[360896701,1747127453439,-400.0,0.00011988,2]
[360896702,1747127453569,-400.0,0.00011988,2]
[360896703,1747127453579,-400.0,0.00011988,2]
[360896704,1747127453589,-400.0,0.00011988,2]
[360896705,1747127453598,-152.90506767,0.00011988,2]
[360896706,1747127453607,-400.0,0.00011988,2]
[360896707,1747127453617,-627.82909964,0.00011988,2]
[360896708,1747127453626,-400.0,0.00011988,2]
[360896709,1747127453635,-400.0,0.00011988,2]
[360896710,1747127453644,-409.51830712,0.00011988,2]
[360896711,1747127453654,-401.86479122,0.00011988,2]
[360896712,1747127453664,-400.0,0.00011988,2]
[360896713,1747127453673,-409.00866544,0.00011988,2]
[360896714,1747127453684,-403.45486433,0.00011988,2]
[360896715,1747127453693,-402.44664473,0.00011988,2]
[360896716,1747127453702,-400.68076888,0.00011988,2]
[360896717,1747127453711,-400.0,0.00011988,2]
[360896718,1747127453720,-403.94883397,0.00011988,2]
[360896719,1747127453730,-400.0,0.00011988,2]
[360896720,1747127453739,-404.99020731,0.00011988,2]
[360896721,1747127453749,-403.36094085,0.00011988,2]
[360896722,1747127453759,-403.89965096,0.00011988,2]
[360896723,1747127453768,-401.82502289,0.00011988,2]
[360896724,1747127453778,-411.19704997,0.00011988,2]
[360896725,1747127453787,-369.19696862,0.00011988,2]
[360896726,1747127453797,-400.0,0.00011988,2]
[360896727,1747127453807,-414.77646453,0.00011988,2]
[360896728,1747127453816,-400.0,0.00011988,2]
[360896729,1747127453825,-153.56835426,0.00011988,2]
[360896730,1747127453835,-400.0,0.00011988,2]
[360896731,1747127453845,-400.0,0.00011988,2]
[360896732,1747127453855,-404.40398213,0.00011988,2]
[360896733,1747127453864,-400.0,0.00011988,2]
[360896734,1747127453874,-400.0,0.00011988,2]
[360896735,1747127453884,-400.0,0.00011988,2]
[360896736,1747127453894,-400.0,0.00011988,2]
[360896737,1747127453904,-400.0,0.00011988,2]
[360896738,1747127453913,-403.45199496,0.00011988,2]
[360896739,1747127453923,-400.0,0.00011988,2]
[360896740,1747127453934,-402.62239614,0.00011988,2]
[360896741,1747127453944,-400.0,0.00011988,2]
[360896742,1747127453953,-401.043182,0.00011988,2]
[360896743,1747127453962,-400.0,0.00011988,2]
[360896744,1747127453971,-400.0,0.00011988,2]
[360896745,1747127453981,-365.22379584,0.00011988,2]
[360896746,1747127453990,-400.0,0.00011988,2]
[360896747,1747127454000,-515.58,0.00011988,2]
[360896748,1747127454010,-400.0,0.00011988,2]
[360896749,1747127454020,-400.0,0.00011988,2]
[360896750,1747127454030,-408.68907013,0.00011988,2]
[360896751,1747127454040,-400.66889388,0.00011988,2]
[360896752,1747127454053,-402.84595921,0.00011988,2]
[360896753,1747127454063,-400.0,0.00011988,2]
[360896754,1747127454073,-400.0,0.00011988,2]
[360896755,1747127454084,-400.0,0.00011988,2]
[360896756,1747127454093,-400.0,0.00011988,2]
[360896757,1747127454103,-400.0,0.00011988,2]
[360896758,1747127454112,-1111.6,0.00011988,2]
[360896759,1747127454125,-400.0,0.00011988,2]
[360896760,1747127454135,-400.0,0.00011988,2]
[360896761,1747127454145,-313.14645238,0.00011988,2]
[360896762,1747127454154,-400.0,0.00011988,2]
[360896763,1747127454164,-534.47,0.00011988,2]
[360896764,1747127454174,-400.0,0.00011988,2]
[360896765,1747127454184,-400.0,0.00011988,2]
[360896766,1747127454193,-400.0,0.00011988,2]
[360896767,1747127454203,-400.0,0.00011988,2]
[360896768,1747127454213,-407.12139725,0.00011988,2]
[360896769,1747127454223,-400.0,0.00011988,2]
[360896770,1747127454233,-400.0,0.00011988,2]
[360896771,1747127454243,-400.0,0.00011988,2]
[360896772,1747127454252,-400.0,0.00011988,2]
[360896773,1747127454262,-402.06673599,0.00011988,2]
[360896774,1747127454271,-400.0,0.00011988,2]
[360896775,1747127454282,-400.0,0.00011988,2]
[360896776,1747127454291,-400.0,0.00011988,2]
[360896777,1747127454301,-400.0,0.00011988,2]
[360896778,1747127454311,-400.96322465,0.00011988,2]
[360896779,1747127454320,-407.69456405,0.00011988,2]
[360896780,1747127454330,-400.0,0.00011988,2]
[360896781,1747127454340,-409.53436662,0.00011988,2]
[360896782,1747127454350,-400.0,0.00011988,2]
[360896783,1747127454360,-400.0,0.00011988,2]
[360896784,1747127454381,-401.85767067,0.00011988,2]
[360896785,1747127454397,-400.0,0.00011988,2]
[360896786,1747127454418,-400.0,0.00011988,2]
[360896787,1747127454441,-400.0,0.00011988,2]
[360896788,1747127454456,-403.31981285,0.00011988,2]
[360896789,1747127454475,-400.92694009,0.00011988,2]
[360896790,1747127454495,-401.6101941,0.00011988,2]
[360896791,1747127454513,-500.0,0.00011988,2]
[360896792,1747127454532,-500.0,0.00011988,2]
[360896793,1747127454550,-195.168387,0.00011988,2]
[360896794,1747127454570,-400.0,0.00011988,2]
[360896795,1747127454585,-400.0,0.00011988,2]
[360896796,1747127454599,-400.0,0.00011988,2]
[360896797,1747127454618,-400.0,0.00011988,2]
[360896798,1747127454631,-400.0,0.00011988,2]
[360896799,1747127454648,-401.26151335,0.00011988,2]
[360896800,1747127454661,-400.0,0.00011988,2]
[360896801,1747127454676,-400.0,0.00011988,2]
[360896802,1747127454690,-411.86835723,0.00011988,2]
[360896803,1747127454705,-400.0,0.00011988,2]
[360896804,1747127454721,-374.35396495,0.00011988,2]
[360896805,1747127454734,-400.0,0.00011988,2]
[360896806,1747127454750,-400.0,0.00011988,2]
[360896807,1747127454764,-172.161684,0.00011988,2]
[360896808,1747127454778,-172.161684,0.00011988,2]
[360896809,1747127454792,-400.0,0.00011988,2]
[360896810,1747127454814,-408.48329292,0.00011988,2]
[360896811,1747127454828,-404.85511632,0.00011988,2]
[360896812,1747127454843,-400.0,0.00011988,2]
[360896813,1747127454858,-400.0,0.00011988,2]
[360896814,1747127454872,-400.0,0.00011988,2]
[360896815,1747127454886,-400.0,0.00011988,2]
[360896816,1747127454900,-400.0,0.00011988,2]
[360896817,1747127454914,-400.97175723,0.00011988,2]
[360896818,1747127454928,-400.0,0.00011988,2]
[360896819,1747127454943,-544.57203786,0.00011988,2]
[360896820,1747127454957,-400.0,0.00011988,2]
[360896821,1747127454971,-400.0,0.00011988,2]
[360896822,1747127454985,-400.0,0.00011988,2]
[360896823,1747127454999,-400.0,0.00011988,2]
[360896824,1747127455014,-547.28,0.00011988,2]
[360896825,1747127455027,-400.0,0.00011988,2]
[360896826,1747127455041,-400.0,0.00011988,2]
[360896827,1747127455058,-403.21448653,0.00011988,2]
[360896828,1747127455071,-405.99490091,0.00011988,2]
[360896829,1747127455086,-400.0,0.00011988,2]
[360896830,1747127455100,-400.0,0.00011988,2]
[360896831,1747127455114,-400.0,0.00011988,2]
[360896832,1747127455131,-400.0,0.00011988,2]
[360896833,1747127455146,-402.70390629,0.00011988,2]
[360896834,1747127455161,-400.0,0.00011988,2]
[360896835,1747127455176,-400.0,0.00011988,2]
[360896836,1747127455191,-400.0,0.00011988,2]
[360896837,1747127455205,-400.0,0.00011988,2]
[360896838,1747127455221,-400.0,0.00011988,2]
[360896839,1747127455235,-400.46804805,0.00011988,2]
[360896840,1747127455251,-402.30663523,0.00011988,2]
[360896841,1747127455267,-400.0,0.00011988,2]
[360896842,1747127455281,-400.0,0.00011988,2]
[360896843,1747127455298,-400.0,0.00011988,2]
[360896844,1747127455313,-400.0,0.00011988,2]
[360896845,1747127455326,-400.0,0.00011988,2]
[360896846,1747127455341,-151.0,0.00011988,2]
[360896847,1747127455355,-400.0,0.00011988,2]
[360896848,1747127455369,-400.0,0.00011988,2]
[360896849,1747127455384,-400.83941409,0.00011988,2]
[360896850,1747127455398,-401.27210995,0.00011988,2]
[360896851,1747127455413,-403.76257589,0.00011988,2]
[360896852,1747127455426,-245.91243099,0.00011988,2]
[360896853,1747127455442,-400.0,0.00011988,2]
[360896854,1747127455456,-400.0,0.00011988,2]
[360896855,1747127455471,-400.0,0.00011988,2]
[360896856,1747127455485,-407.09064838,0.00011988,2]
[360896857,1747127455499,-400.0,0.00011988,2]
[360896858,1747127455514,-400.0,0.00011988,2]
[360896859,1747127455529,-400.0,0.00011988,2]
[360896860,1747127455545,-400.0,0.00011988,2]
[360896861,1747127455558,-400.0,0.00011988,2]
[360896862,1747127455568,-400.0,0.00011988,2]
[360896863,1747127455578,-400.0,0.00011988,2]
[360896864,1747127455587,-400.0,0.00011988,2]
[360896865,1747127455597,-401.93414413,0.00011988,2]
[360896866,1747127455606,-402.51889014,0.00011988,2]
[360896867,1747127455615,-400.0,0.00011988,2]
[360896868,1747127455625,-400.0,0.00011988,2]
[360896869,1747127455870,-400.0,0.00011988,2]
[360896870,1747127455882,-400.64488466,0.00011988,2]
[360896871,1747127455891,-400.0,0.00011988,2]
[360896872,1747127455901,-400.0,0.00011988,2]
[360896873,1747127455910,-400.0,0.00011988,2]
[360896874,1747127455919,-400.0,0.00011988,2]
[360896875,1747127455928,-400.0,0.00011988,2]
[360896876,1747127455938,-400.0,0.00011988,2]
[360896877,1747127455948,-400.0,0.00011988,2]
[360896878,1747127455956,-400.0,0.00011988,2]
[360896879,1747127455966,-400.0,0.00011988,2]
[360896880,1747127455974,-405.74766198,0.00011988,2]
[360896881,1747127455983,-515.55861295,0.00011988,2]
[360896882,1747127455992,-400.0,0.00011988,2]
[360896883,1747127456001,-400.0,0.00011988,2]
[360896884,1747127456010,-400.0,0.00011988,2]
[360896885,1747127456019,-403.34936208,0.00011988,2]
[360896886,1747127456028,-402.82690464,0.00011988,2]
[360896887,1747127456038,-400.0,0.00011988,2]
[360896888,1747127456051,-400.0,0.00011988,2]
[360896889,1747127456060,-400.0,0.00011988,2]
[360896890,1747127456069,-400.0,0.00011988,2]
[360896891,1747127456080,-400.0,0.00011988,2]
[360896892,1747127456092,-189.134307,0.00011988,2]
[360896893,1747127456107,-189.134307,0.00011988,2]
[360896894,1747127456118,-400.0,0.00011988,2]
[360896895,1747127456130,-423.79425235,0.00011988,2]
[360896896,1747127456139,-400.0,0.00011988,2]
[360896897,1747127456148,-189.134307,0.00011988,2]
[360896898,1747127456158,-189.134307,0.00011988,2]
[360896899,1747127456167,-403.1362577,0.00011988,2]
[360896900,1747127456177,-400.0,0.00011988,2]
[360896901,1747127456187,-400.0,0.00011988,2]
[360896902,1747127456198,-400.0,0.00011988,2]
[360896903,1747127456207,-400.0,0.00011988,2]
[360896904,1747127456218,-500.0,0.00011988,2]
[360896905,1747127456227,-400.0,0.00011988,2]
[360896906,1747127456237,-400.0,0.00011988,2]
[360896907,1747127456248,-400.0,0.00011988,2]
[360896908,1747127456259,-400.0,0.00011988,2]
[360896909,1747127456270,-400.0,0.00011988,2]
[360896910,1747127456280,-400.0,0.00011988,2]
[360896911,1747127456289,-400.0,0.00011988,2]
[360896912,1747127456299,-500.0,0.00011988,2]
[360896913,1747127456309,-500.0,0.00011988,2]
[360896914,1747127456318,-155.92948277,0.00011988,2]
[360896915,1747127456329,-400.0,0.00011988,2]
[360896916,1747127456339,-356.53821081,0.00011988,2]
[360896917,1747127456348,-400.0,0.00011988,2]
[360896918,1747127456358,-400.0,0.00011988,2]
[360896919,1747127456369,-400.0,0.00011988,2]
[360896920,1747127456379,-400.0,0.00011988,2]
[360896921,1747127456389,-400.0,0.00011988,2]
[360896922,1747127456399,-276.37595089,0.00011988,2]
[360896923,1747127456410,-458.44153867,0.00011988,2]
[360896924,1747127456421,-404.05574568,0.00011988,2]
[360896925,1747127456431,-407.16060441,0.00011988,2]
[360896926,1747127456443,-403.38987479,0.00011988,2]
[360896927,1747127456454,-416.06197095,0.00011988,2]
[360896928,1747127456464,-500.0,0.00011988,2]
[360896929,1747127456474,-500.0,0.00011988,2]
[360896930,1747127456485,-400.0,0.00011988,2]
[360896931,1747127456495,-400.0,0.00011988,2]
[360896932,1747127456506,-400.0,0.00011988,2]
[360896933,1747127456517,-400.0,0.00011988,2]
[360896934,1747127456526,-400.0,0.00011988,2]
[360896935,1747127456536,-400.0,0.00011988,2]
[360896936,1747127456546,-400.0,0.00011988,2]
[360896937,1747127456556,-400.0,0.00011988,2]
[360896938,1747127456565,-400.59926868,0.00011988,2]
[360896939,1747127456575,-400.55615035,0.00011988,2]
[360896940,1747127456586,-400.0,0.00011988,2]
[360896941,1747127456595,-400.0,0.00011988,2]
[360896942,1747127456605,-402.64022991,0.00011988,2]
[360896943,1747127456615,-400.0,0.00011988,2]
[360896944,1747127456625,-402.52400497,0.00011988,2]
[360896945,1747127456635,-400.0,0.00011988,2]
[360896946,1747127456646,-400.0,0.00011988,2]
[360896947,1747127456656,-400.0,0.00011988,2]
[360896948,1747127456666,-400.0,0.00011988,2]
[360896949,1747127456676,-401.6129621,0.00011988,2]
[360896950,1747127456686,-400.0,0.00011988,2]
[360896951,1747127456695,-400.0,0.00011988,2]
[360896952,1747127456705,-400.0,0.00011988,2]
[360896953,1747127456714,-402.83056586,0.00011988,2]
[360896954,1747127456724,-400.0,0.00011988,2]
[360896955,1747127456733,-400.0,0.00011988,2]
[360896956,1747127456742,-400.0,0.00011988,2]
[360896957,1747127456752,-400.0,0.00011988,2]
[360896958,1747127456761,-400.0,0.00011988,2]
[360896959,1747127456770,-402.04404002,0.00011988,2]
[360896960,1747127456779,-400.0,0.00011988,2]
[360896961,1747127456788,-400.0,0.00011988,2]
[360896962,1747127456798,-151.0,0.00011988,2]
[360896963,1747127456807,-400.0,0.00011988,2]
[360896964,1747127456816,-151.0,0.00011988,2]
[360896965,1747127456825,-151.0,0.00011988,2]
[360896966,1747127456835,-400.0,0.00011988,2]
[360896967,1747127456844,-400.71189277,0.00011988,2]
[360896968,1747127456853,-401.46207184,0.00011988,2]
[360896969,1747127456863,-400.0,0.00011988,2]
[360896970,1747127456872,-402.00001344,0.00011988,2]
[360896971,1747127456881,-400.0,0.00011988,2]
[360896972,1747127456890,-400.0,0.00011988,2]
[360896973,1747127456899,-151.0,0.00011988,2]
[360896974,1747127456909,-402.88684799,0.00011988,2]
[360896975,1747127456918,-199.636526,0.00011988,2]
[360896976,1747127456927,-400.0,0.00011988,2]
[360896977,1747127456939,-151.0,0.00011988,2]
[360896978,1747127456949,-151.0,0.00011988,2]
[360896979,1747127456958,-151.0,0.00011988,2]
[360896980,1747127456967,-489.43,0.00011988,2]
[360896981,1747127456977,-400.0,0.00011988,2]
[360896982,1747127456987,-151.0,0.00011988,2]
[360896983,1747127456996,-400.0,0.00011988,2]
[360896984,1747127457005,-151.0,0.00011988,2]
[360896985,1747127457014,-400.0,0.00011988,2]
[360896986,1747127457024,-151.0,0.00011988,2]
[360896987,1747127457033,-400.0,0.00011988,2]
[360896988,1747127457044,-400.0,0.00011988,2]
[360896989,1747127457057,-400.0,0.00011988,2]
[360896990,1747127457067,-400.0,0.00011988,2]
[360896991,1747127457076,-400.0,0.00011988,2]
[360896992,1747127457086,-151.0,0.00011988,2]
[360896993,1747127457098,-400.91118533,0.00011988,2]
[360896994,1747127457108,-400.0,0.00011988,2]
[360896995,1747127457118,-400.0,0.00011988,2]
[360896996,1747127457127,-400.0,0.00011988,2]
[360896997,1747127457138,-400.0,0.00011988,2]
[360896998,1747127457148,-400.0,0.00011988,2]
[360896999,1747127457158,-400.0,0.00011988,2]
[360897000,1747127457169,-506.90356105,0.00011988,2]
[360897001,1747127457179,-400.0,0.00011988,2]
[360897002,1747127457190,-400.0,0.00011988,2]
[360897003,1747127457199,-400.0,0.00011988,2]
[360897004,1747127457209,-400.0,0.00011988,2]
[360897005,1747127457219,-400.0,0.00011988,2]
[360897006,1747127457229,-400.0,0.00011988,2]
[360897007,1747127457239,-400.0,0.00011988,2]
[360897008,1747127457248,-400.0,0.00011988,2]
[360897009,1747127457258,-400.0,0.00011988,2]
[360897010,1747127457268,-400.0,0.00011988,2]
[360897011,1747127457277,-400.0,0.00011988,2]
[360897012,1747127457287,-400.0,0.00011988,2]
[360897013,1747127457296,-400.0,0.00011988,2]
[360897014,1747127457306,-400.0,0.00011988,2]
[360897015,1747127457315,-400.0,0.00011988,2]
[360897016,1747127457325,-400.0,0.00011988,2]
[360897017,1747127457334,-151.0,0.00011988,2]
[360897018,1747127457343,-151.0,0.00011988,2]
[360897019,1747127457353,-400.0,0.00011988,2]
[360897020,1747127457362,-151.0,0.00011988,2]
[360897021,1747127457376,-400.0,0.00011988,2]
[360897022,1747127457386,-151.0,0.00011988,2]
[360897023,1747127457396,-151.0,0.00011988,2]
[360897024,1747127457406,-151.0,0.00011988,2]
[360897025,1747127457416,-173.99617365,0.00011988,2]
[360897026,1747127457426,-151.0,0.00011988,2]
[360897027,1747127457435,-151.0,0.00011988,2]
[360897028,1747127457445,-151.0,0.00011988,2]
[360897029,1747127457456,-400.0,0.00011988,2]
[360897030,1747127457466,-1135.62,0.00011988,2]
[360897031,1747127457479,-400.0,0.00011988,2]
[360897032,1747127457489,-400.0,0.00011988,2]
[360897033,1747127457499,-400.0,0.00011988,2]
[360897034,1747127457508,-401.37254497,0.00011988,2]
[360897035,1747127457518,-327.87636724,0.00011988,2]
[360897036,1747127457528,-400.0,0.00011988,2]
[360897037,1747127457537,-400.0,0.00011988,2]
[360897038,1747127457547,-509.31337342,0.00011988,2]
[360897039,1747127457556,-151.0,0.00011988,2]
[360897040,1747127457565,-400.0,0.00011988,2]
[360897041,1747127457575,-400.0,0.00011988,2]
[360897042,1747127457584,-450.0,0.00011988,2]
[360897043,1747127457593,-400.0,0.00011988,2]
[360897044,1747127457602,-400.0,0.00011988,2]
[360897045,1747127457611,-400.0,0.00011988,2]